[Event "Early-Titled-Tuesday-Blitz-February-06-2024"]
[Site "Chess.com"]
[Date "2024.02.06"]
[Round "6"]
[White "Blitzking642"]
[Black "azikom"]
[Result "1/2-1/2"]
[WhiteElo "2542"]
[BlackElo "2701"]
[TimeControl "180+1"]
[EndTime "9:08:22 PST"]
[Termination "Game drawn by repetition"]

1. e4 {[%clk 0:03:00.9]} 1... c5 {[%clk 0:02:59.4]} 2. Nf3 {[%clk 0:03:00.8]}
2... e6 {[%clk 0:02:59.6]} 3. g3 {[%clk 0:03:00.5]} 3... Nc6 {[%clk 0:02:40.3]}
4. Bg2 {[%clk 0:03:00.5]} 4... d5 {[%clk 0:02:38.2]} 5. exd5 {[%clk 0:02:59.4]}
5... exd5 {[%clk 0:02:39.1]} 6. O-O {[%clk 0:02:59.8]} 6... Nf6 {[%clk
0:02:38.7]} 7. d4 {[%clk 0:02:59.9]} 7... Be7 {[%clk 0:02:38.3]} 8. dxc5 {[%clk
0:02:59.9]} 8... O-O {[%clk 0:02:38]} 9. a3 {[%clk 0:02:57.2]} 9... Bxc5 {[%clk
0:02:37.5]} 10. b4 {[%clk 0:02:56.1]} 10... Bb6 {[%clk 0:02:37.2]} 11. Nc3
{[%clk 0:02:55.5]} 11... h6 {[%clk 0:02:32]} 12. Na4 {[%clk 0:02:49.2]} 12...
Bc7 {[%clk 0:02:31.4]} 13. Bb2 {[%clk 0:02:48.9]} 13... Re8 {[%clk 0:02:16.8]}
14. Qd3 {[%clk 0:02:41.7]} 14... Bg4 {[%clk 0:01:45]} 15. h3 {[%clk 0:02:40.1]}
15... Bh5 {[%clk 0:01:42.4]} 16. Rfe1 {[%clk 0:02:24.2]} 16... Rxe1+ {[%clk
0:01:38.6]} 17. Rxe1 {[%clk 0:02:22.4]} 17... Bg6 {[%clk 0:01:39.5]} 18. Qd1
{[%clk 0:02:20.6]} 18... Ne4 {[%clk 0:01:36.1]} 19. Nh4 {[%clk 0:02:02.6]} 19...
Bh7 {[%clk 0:01:34.1]} 20. c4 {[%clk 0:02:03.1]} 20... Nxg3 {[%clk 0:01:06.3]}
21. fxg3 {[%clk 0:01:53.3]} 21... Bxg3 {[%clk 0:01:04.3]} 22. Qg4 {[%clk
0:01:51.7]} 22... Qg5 {[%clk 0:01:00.2]} 23. cxd5 {[%clk 0:01:07.7]} 23... Bxe1
{[%clk 0:00:39.8]} 24. Qxg5 {[%clk 0:01:02.4]} 24... hxg5 {[%clk 0:00:39]} 25.
Nf3 {[%clk 0:01:01.1]} 25... Bg3 {[%clk 0:00:16.1]} 26. dxc6 {[%clk 0:01:00.7]}
26... bxc6 {[%clk 0:00:16.8]} 27. Nxg5 {[%clk 0:00:58.7]} 27... Bc2 {[%clk
0:00:16.2]} 28. Nc5 {[%clk 0:00:50.8]} 28... Re8 {[%clk 0:00:14.9]} 29. Bxc6
{[%clk 0:00:48.6]} 29... Re1+ {[%clk 0:00:14.4]} 30. Kg2 {[%clk 0:00:48.6]}
30... Bf4 {[%clk 0:00:14.2]} 31. Nge4 {[%clk 0:00:31.4]} 31... Rb1 {[%clk
0:00:09.8]} 32. Bd4 {[%clk 0:00:29.9]} 32... Bc7 {[%clk 0:00:07.3]} 33. Na6
{[%clk 0:00:19.8]} 33... Bb6 {[%clk 0:00:06.9]} 34. Bxb6 {[%clk 0:00:19]} 34...
axb6 {[%clk 0:00:07.8]} 35. a4 {[%clk 0:00:18.6]} 35... Rc1 {[%clk 0:00:06.6]}
36. Nf2 {[%clk 0:00:13.1]} 36... Ra1 {[%clk 0:00:05.7]} 37. a5 {[%clk
0:00:08.8]} 37... bxa5 {[%clk 0:00:05.9]} 38. bxa5 {[%clk 0:00:08.3]} 38... Rxa5
{[%clk 0:00:05.5]} 39. Nb4 {[%clk 0:00:08.2]} 39... Bg6 {[%clk 0:00:05.1]} 40.
Nd5 {[%clk 0:00:05.2]} 40... Rc5 {[%clk 0:00:04.5]} 41. Ne7+ {[%clk 0:00:05.4]}
41... Kh7 {[%clk 0:00:04.6]} 42. Nxg6 {[%clk 0:00:05.9]} 42... Kxg6 {[%clk
0:00:04.8]} 43. Be4+ {[%clk 0:00:05.5]} 43... f5 {[%clk 0:00:04.8]} 44. Bf3
{[%clk 0:00:05.9]} 44... Kf6 {[%clk 0:00:05.2]} 45. Kg3 {[%clk 0:00:06.5]} 45...
Ra5 {[%clk 0:00:05.4]} 46. h4 {[%clk 0:00:05.7]} 46... Ra3 {[%clk 0:00:05.5]}
47. Kf4 {[%clk 0:00:05.3]} 47... Ra4+ {[%clk 0:00:05.4]} 48. Kg3 {[%clk
0:00:05.1]} 48... Ra3 {[%clk 0:00:05.6]} 49. Kf4 {[%clk 0:00:05.5]} 49... Ra4+
{[%clk 0:00:05.8]} 50. Kg3 {[%clk 0:00:05.9]} 50... Ra3 {[%clk 0:00:06.5]}
1/2-1/2

[Event "Early-Titled-Tuesday-Blitz-February-06-2024"]
[Site "Chess.com"]
[Date "2024.02.06"]
[Round "6"]
[White "NMJeevanK"]
[Black "Seochesspie"]
[Result "1-0"]
[WhiteElo "2601"]
[BlackElo "2784"]
[TimeControl "180+1"]
[EndTime "9:08:23 PST"]
[Termination "NMJeevanK won by checkmate"]

1. e4 {[%clk 0:03:00.9]} 1... c5 {[%clk 0:02:59.9]} 2. Nc3 {[%clk 0:03:00.2]}
2... Nc6 {[%clk 0:02:59.8]} 3. Bb5 {[%clk 0:03:00.2]} 3... Nd4 {[%clk
0:02:59.8]} 4. Bc4 {[%clk 0:03:00.5]} 4... e6 {[%clk 0:02:58.2]} 5. Nge2 {[%clk
0:03:00.4]} 5... Nc6 {[%clk 0:02:48]} 6. d4 {[%clk 0:02:52.7]} 6... cxd4 {[%clk
0:02:48]} 7. Nxd4 {[%clk 0:02:53.6]} 7... Nf6 {[%clk 0:02:47.2]} 8. Nxc6 {[%clk
0:02:50]} 8... bxc6 {[%clk 0:02:46.7]} 9. e5 {[%clk 0:02:50.7]} 9... Nd5 {[%clk
0:02:46.7]} 10. Nxd5 {[%clk 0:02:47.3]} 10... cxd5 {[%clk 0:02:46.2]} 11. Bd3
{[%clk 0:02:48]} 11... Ba6 {[%clk 0:02:39.5]} 12. O-O {[%clk 0:02:44.6]} 12...
Bxd3 {[%clk 0:02:39.5]} 13. Qxd3 {[%clk 0:02:45.5]} 13... Qc7 {[%clk 0:02:37.9]}
14. Bf4 {[%clk 0:02:40.9]} 14... Be7 {[%clk 0:02:35.7]} 15. c3 {[%clk
0:02:30.6]} 15... O-O {[%clk 0:02:35.2]} 16. Qg3 {[%clk 0:02:29.6]} 16... Rfc8
{[%clk 0:02:28.7]} 17. Rad1 {[%clk 0:02:19]} 17... Rab8 {[%clk 0:02:27.9]} 18.
Bc1 {[%clk 0:02:09.6]} 18... a5 {[%clk 0:02:19.7]} 19. f4 {[%clk 0:02:08.5]}
19... Qc4 {[%clk 0:02:07.6]} 20. f5 {[%clk 0:02:00.9]} 20... exf5 {[%clk
0:02:04.8]} 21. Rxf5 {[%clk 0:01:59.7]} 21... Qxa2 {[%clk 0:02:04.9]} 22. Rdf1
{[%clk 0:01:57.8]} 22... Rf8 {[%clk 0:02:02.5]} 23. Bh6 {[%clk 0:01:52.8]} 23...
g6 {[%clk 0:02:02.5]} 24. e6 {[%clk 0:01:37.5]} 24... f6 {[%clk 0:01:16.5]} 25.
Bxf8 {[%clk 0:01:27.8]} 25... Rxf8 {[%clk 0:01:13.9]} 26. exd7 {[%clk
0:01:24.5]} 26... a4 {[%clk 0:01:01.9]} 27. Qe3 {[%clk 0:01:07.2]} 27... Bd8
{[%clk 0:00:50.1]} 28. Qe6+ {[%clk 0:00:57.1]} 28... Kg7 {[%clk 0:00:50]} 29.
Rxd5 {[%clk 0:00:54.4]} 29... Qxb2 {[%clk 0:00:49.2]} 30. c4 {[%clk 0:00:31]}
30... a3 {[%clk 0:00:48.5]} 31. Rdd1 {[%clk 0:00:30.7]} 31... Qc2 {[%clk
0:00:35.9]} 32. Qa6 {[%clk 0:00:27.7]} 32... a2 {[%clk 0:00:31.7]} 33. Ra1
{[%clk 0:00:25.9]} 33... Rf7 {[%clk 0:00:27.8]} 34. Rxa2 {[%clk 0:00:25.4]}
34... Qd3 {[%clk 0:00:26.3]} 35. Raf2 {[%clk 0:00:18.5]} 35... Qxd7 {[%clk
0:00:21.1]} 36. Kh1 {[%clk 0:00:18]} 36... Qd4 {[%clk 0:00:20.4]} 37. Qb5 {[%clk
0:00:14.8]} 37... Bc7 {[%clk 0:00:18.2]} 38. Qd5 {[%clk 0:00:11.8]} 38... Qh4
{[%clk 0:00:16.3]} 39. g3 {[%clk 0:00:07.7]} 39... Bxg3 {[%clk 0:00:16.2]} 40.
Rg2 {[%clk 0:00:08.2]} 40... Be5 {[%clk 0:00:14.8]} 41. c5 {[%clk 0:00:07.9]}
41... Qb4 {[%clk 0:00:12.9]} 42. c6 {[%clk 0:00:07.4]} 42... Qb6 {[%clk
0:00:13]} 43. Rc1 {[%clk 0:00:06.4]} 43... Rc7 {[%clk 0:00:12]} 44. Qc4 {[%clk
0:00:06.4]} 44... Qe3 {[%clk 0:00:11.4]} 45. Rd1 {[%clk 0:00:06.3]} 45... h5
{[%clk 0:00:09.3]} 46. Qd5 {[%clk 0:00:06.1]} 46... Kh6 {[%clk 0:00:08.4]} 47.
Qg8 {[%clk 0:00:05.1]} 47... Rg7 {[%clk 0:00:07.7]} 48. Qh8+ {[%clk 0:00:05]}
48... Rh7 {[%clk 0:00:08.1]} 49. Qf8+ {[%clk 0:00:05.7]} 49... Rg7 {[%clk
0:00:08.6]} 50. Qh8+ {[%clk 0:00:05.5]} 50... Rh7 {[%clk 0:00:09]} 51. Qd8
{[%clk 0:00:05.8]} 51... h4 {[%clk 0:00:06.8]} 52. Qf8+ {[%clk 0:00:05.7]} 52...
Kh5 {[%clk 0:00:05.5]} 53. Qe8 {[%clk 0:00:06]} 53... Rh6 {[%clk 0:00:05]} 54.
Qd7 {[%clk 0:00:05.2]} 54... h3 {[%clk 0:00:03.5]} 55. Qg4# {[%clk 0:00:05.2]}
1-0

[Event "Early-Titled-Tuesday-Blitz-February-06-2024"]
[Site "Chess.com"]
[Date "2024.02.06"]
[Round "6"]
[White "Lady_Nika"]
[Black "SargissyanSargis"]
[Result "1-0"]
[WhiteElo "2584"]
[BlackElo "2400"]
[TimeControl "180+1"]
[EndTime "9:08:24 PST"]
[Termination "Lady_Nika won by resignation"]

1. e4 {[%clk 0:03:00.9]} 1... c5 {[%clk 0:02:58.6]} 2. Nc3 {[%clk 0:03:00.5]}
2... Nc6 {[%clk 0:02:54.1]} 3. g3 {[%clk 0:02:59.8]} 3... g6 {[%clk 0:02:53.7]}
4. Bg2 {[%clk 0:02:59.1]} 4... Bg7 {[%clk 0:02:53.9]} 5. d3 {[%clk 0:02:56.8]}
5... d6 {[%clk 0:02:53.2]} 6. f4 {[%clk 0:02:56.8]} 6... e6 {[%clk 0:02:52.7]}
7. Nf3 {[%clk 0:02:57]} 7... Nge7 {[%clk 0:02:53.3]} 8. Rb1 {[%clk 0:02:52.8]}
8... Rb8 {[%clk 0:02:48.3]} 9. O-O {[%clk 0:02:51.6]} 9... O-O {[%clk
0:02:47.8]} 10. Ne2 {[%clk 0:02:50.2]} 10... b5 {[%clk 0:02:39.6]} 11. Be3
{[%clk 0:02:50.2]} 11... f5 {[%clk 0:02:38]} 12. h3 {[%clk 0:02:47.4]} 12... Qa5
{[%clk 0:02:04.9]} 13. a3 {[%clk 0:02:45.2]} 13... b4 {[%clk 0:01:59.4]} 14.
axb4 {[%clk 0:02:43]} 14... Qxb4 {[%clk 0:01:55]} 15. Bd2 {[%clk 0:02:34.2]}
15... Qb6 {[%clk 0:01:51]} 16. Kh2 {[%clk 0:02:32]} 16... Nd4 {[%clk 0:01:42.3]}
17. c3 {[%clk 0:02:29]} 17... Nb3 {[%clk 0:01:37]} 18. Be3 {[%clk 0:02:26.5]}
18... Bd7 {[%clk 0:01:27.8]} 19. Qc2 {[%clk 0:02:01.5]} 19... d5 {[%clk
0:01:18.4]} 20. e5 {[%clk 0:01:52.6]} 20... a5 {[%clk 0:01:11.6]} 21. g4 {[%clk
0:01:49.9]} 21... a4 {[%clk 0:01:11.4]} 22. Ng3 {[%clk 0:01:48.9]} 22... d4
{[%clk 0:01:03.7]} 23. Bg1 {[%clk 0:01:47]} 23... Nd5 {[%clk 0:01:02.6]} 24. c4
{[%clk 0:01:45.2]} 24... Nxf4 {[%clk 0:01:02]} 25. gxf5 {[%clk 0:01:41]} 25...
exf5 {[%clk 0:01:00]} 26. Rbe1 {[%clk 0:01:28.9]} 26... Nxg2 {[%clk 0:00:56.3]}
27. Qxg2 {[%clk 0:01:28.2]} 27... Bc6 {[%clk 0:00:56.1]} 28. Re2 {[%clk
0:01:03.8]} 28... Rbe8 {[%clk 0:00:56.2]} 29. Qf2 {[%clk 0:00:49.4]} 29... Bxf3
{[%clk 0:00:53.9]} 30. Qxf3 {[%clk 0:00:48.9]} 30... Rxe5 {[%clk 0:00:51.8]} 31.
Rfe1 {[%clk 0:00:47.5]} 31... Qd6 {[%clk 0:00:41.8]} 32. Bf2 {[%clk 0:00:43.5]}
32... Kh8 {[%clk 0:00:30.3]} 33. h4 {[%clk 0:00:35]} 33... Bf6 {[%clk
0:00:22.5]} 34. Rxe5 {[%clk 0:00:31.1]} 34... Bxe5 {[%clk 0:00:22.5]} 35. h5
{[%clk 0:00:31.4]} 35... Kg7 {[%clk 0:00:19.2]} 36. Rg1 {[%clk 0:00:27.5]} 36...
Kh8 {[%clk 0:00:17.3]} 37. Kh1 {[%clk 0:00:27.4]} 37... Qf6 {[%clk 0:00:17]} 38.
Rg2 {[%clk 0:00:26.3]} 38... Qh4+ {[%clk 0:00:16.5]} 39. Rh2 {[%clk 0:00:26.6]}
39... Qg5 {[%clk 0:00:14.1]} 40. hxg6 {[%clk 0:00:26.5]} 40... Qxg6 {[%clk
0:00:14.6]} 41. Rh3 {[%clk 0:00:20.9]} 41... Na5 {[%clk 0:00:13.1]} 42. Qd5
{[%clk 0:00:20.5]} 42... Bf4 {[%clk 0:00:11.8]} 43. Nh5 {[%clk 0:00:19.1]} 43...
Rg8 {[%clk 0:00:11.2]} 44. Nxf4 {[%clk 0:00:18.5]} 44... Qf6 {[%clk 0:00:10.3]}
45. Qd7 {[%clk 0:00:15.1]} 45... Rg7 {[%clk 0:00:09.2]} 46. Qe8+ {[%clk
0:00:14.9]} 46... Rg8 {[%clk 0:00:09.1]} 47. Qh5 {[%clk 0:00:14.8]} 47... Rg7
{[%clk 0:00:08.8]} 48. Qf3 {[%clk 0:00:12.7]} 48... Nc6 {[%clk 0:00:07.3]} 49.
Nh5 {[%clk 0:00:11.2]} 49... Ne5 {[%clk 0:00:01.1]} 50. Qa8+ {[%clk 0:00:08.5]}
50... Rg8 {[%clk 0:00:01.1]} 51. Qxg8+ {[%clk 0:00:08.3]} 51... Kxg8 {[%clk
0:00:02]} 52. Nxf6+ {[%clk 0:00:08.9]} 1-0

[Event "Early-Titled-Tuesday-Blitz-February-06-2024"]
[Site "Chess.com"]
[Date "2024.02.06"]
[Round "6"]
[White "viktorskliarov"]
[Black "DinaBelenkaya"]
[Result "1-0"]
[WhiteElo "2636"]
[BlackElo "2435"]
[TimeControl "180+1"]
[EndTime "9:08:25 PST"]
[Termination "viktorskliarov won by checkmate"]

1. e4 {[%clk 0:03:00.9]} 1... c6 {[%clk 0:02:56.8]} 2. d4 {[%clk 0:02:59.9]}
2... d5 {[%clk 0:02:54.7]} 3. e5 {[%clk 0:03:00.1]} 3... Bf5 {[%clk 0:02:51.2]}
4. Nf3 {[%clk 0:02:59.7]} 4... e6 {[%clk 0:02:50.4]} 5. Be2 {[%clk 0:02:59.6]}
5... Be7 {[%clk 0:02:50.1]} 6. O-O {[%clk 0:02:59.4]} 6... Nd7 {[%clk
0:02:24.7]} 7. a4 {[%clk 0:02:55.2]} 7... Bg6 {[%clk 0:02:14.2]} 8. Na3 {[%clk
0:02:54.2]} 8... Nh6 {[%clk 0:02:12.7]} 9. Bxh6 {[%clk 0:02:11.9]} 9... gxh6
{[%clk 0:02:13.6]} 10. c4 {[%clk 0:02:12.2]} 10... dxc4 {[%clk 0:02:03.4]} 11.
Nxc4 {[%clk 0:02:09.4]} 11... Nb6 {[%clk 0:02:03.2]} 12. Qb3 {[%clk 0:01:58.5]}
12... Nxc4 {[%clk 0:01:58.1]} 13. Bxc4 {[%clk 0:01:45.3]} 13... Qd7 {[%clk
0:01:53.3]} 14. Qe3 {[%clk 0:01:32.2]} 14... Rg8 {[%clk 0:01:36.9]} 15. a5
{[%clk 0:01:17.2]} 15... a6 {[%clk 0:01:31.5]} 16. Rfd1 {[%clk 0:01:05]} 16...
Bh5 {[%clk 0:01:29.9]} 17. Rd3 {[%clk 0:01:01.2]} 17... Bg4 {[%clk 0:01:21.9]}
18. Rb3 {[%clk 0:00:37.6]} 18... h5 {[%clk 0:01:18.9]} 19. Kf1 {[%clk
0:00:16.1]} 19... h4 {[%clk 0:01:17.6]} 20. h3 {[%clk 0:00:16.2]} 20... Bf5
{[%clk 0:01:15.1]} 21. Rc1 {[%clk 0:00:15.6]} 21... Rg6 {[%clk 0:01:08.5]} 22.
Bd3 {[%clk 0:00:15.2]} 22... Bxd3+ {[%clk 0:00:58.4]} 23. Qxd3 {[%clk
0:00:16.1]} 23... Kf8 {[%clk 0:00:47.3]} 24. Qe4 {[%clk 0:00:15.6]} 24... Kg7
{[%clk 0:00:35.6]} 25. Nxh4 {[%clk 0:00:15.4]} 25... Bxh4 {[%clk 0:00:25]} 26.
Qxh4 {[%clk 0:00:16.3]} 26... Rd8 {[%clk 0:00:24.4]} 27. Rxb7 {[%clk 0:00:15.3]}
27... Qxb7 {[%clk 0:00:23]} 28. Qxd8 {[%clk 0:00:15]} 28... Qxb2 {[%clk
0:00:21.5]} 29. Re1 {[%clk 0:00:10.6]} 29... Qb5+ {[%clk 0:00:19.4]} 30. Kg1
{[%clk 0:00:10.2]} 30... Qd5 {[%clk 0:00:19.7]} 31. Qxd5 {[%clk 0:00:09.5]}
31... exd5 {[%clk 0:00:15.1]} 32. Rb1 {[%clk 0:00:07.8]} 32... c5 {[%clk
0:00:07.5]} 33. dxc5 {[%clk 0:00:07.8]} 33... Rc6 {[%clk 0:00:07.7]} 34. Rb6
{[%clk 0:00:08]} 34... Rxc5 {[%clk 0:00:08.1]} 35. Rxa6 {[%clk 0:00:08.4]} 35...
Rc1+ {[%clk 0:00:07.2]} 36. Kh2 {[%clk 0:00:08.5]} 36... Ra1 {[%clk 0:00:05.2]}
37. f4 {[%clk 0:00:07.7]} 37... d4 {[%clk 0:00:04.4]} 38. Rd6 {[%clk 0:00:07.8]}
38... Ra4 {[%clk 0:00:03.5]} 39. a6 {[%clk 0:00:06.9]} 39... d3 {[%clk
0:00:01.6]} 40. Rxd3 {[%clk 0:00:06.4]} 40... Rxa6 {[%clk 0:00:02.3]} 41. Kg3
{[%clk 0:00:06.7]} 41... Ra4 {[%clk 0:00:02.7]} 42. Kf3 {[%clk 0:00:06.9]} 42...
Ra2 {[%clk 0:00:03]} 43. g4 {[%clk 0:00:07]} 43... Rb2 {[%clk 0:00:03.1]} 44. h4
{[%clk 0:00:07.2]} 44... Rh2 {[%clk 0:00:03.3]} 45. Kg3 {[%clk 0:00:07.3]} 45...
Re2 {[%clk 0:00:02.7]} 46. Kf3 {[%clk 0:00:06.9]} 46... Rh2 {[%clk 0:00:02.7]}
47. h5 {[%clk 0:00:07.4]} 47... h6 {[%clk 0:00:02.7]} 48. Ke4 {[%clk 0:00:07.6]}
48... Rg2 {[%clk 0:00:02.6]} 49. Kf5 {[%clk 0:00:07.9]} 49... Rb2 {[%clk
0:00:02]} 50. Rd7 {[%clk 0:00:08.5]} 50... Rb5 {[%clk 0:00:02.2]} 51. Rc7 {[%clk
0:00:07.9]} 51... Ra5 {[%clk 0:00:02.4]} 52. g5 {[%clk 0:00:08.4]} 52... hxg5
{[%clk 0:00:03.3]} 53. fxg5 {[%clk 0:00:09]} 53... Ra4 {[%clk 0:00:03.2]} 54. g6
{[%clk 0:00:07.7]} 54... Kh6 {[%clk 0:00:02.7]} 55. Rxf7 {[%clk 0:00:07.5]}
55... Rf4+ {[%clk 0:00:02.6]} 56. Kxf4 {[%clk 0:00:06.4]} 56... Kxh5 {[%clk
0:00:02.9]} 57. Rf6 {[%clk 0:00:06.2]} 57... Kh6 {[%clk 0:00:03.8]} 58. g7+
{[%clk 0:00:06.6]} 58... Kxg7 {[%clk 0:00:04.2]} 59. Kf5 {[%clk 0:00:07.3]}
59... Kg8 {[%clk 0:00:04.4]} 60. Kg6 {[%clk 0:00:07.7]} 60... Kh8 {[%clk
0:00:04.5]} 61. Rf8# {[%clk 0:00:08.6]} 1-0

[Event "Early-Titled-Tuesday-Blitz-February-06-2024"]
[Site "Chess.com"]
[Date "2024.02.06"]
[Round "6"]
[White "kai_nov"]
[Black "stratacticos"]
[Result "1-0"]
[WhiteElo "2299"]
[BlackElo "2049"]
[TimeControl "180+1"]
[EndTime "9:08:25 PST"]
[Termination "kai_nov won on time"]

1. e4 {[%clk 0:03:00.9]} 1... c5 {[%clk 0:02:51.1]} 2. Nf3 {[%clk 0:03:00.3]}
2... Nc6 {[%clk 0:02:49.7]} 3. c3 {[%clk 0:02:59]} 3... Nf6 {[%clk 0:02:48.9]}
4. e5 {[%clk 0:02:58.4]} 4... Nd5 {[%clk 0:02:48.9]} 5. d4 {[%clk 0:02:56.9]}
5... cxd4 {[%clk 0:02:48.7]} 6. cxd4 {[%clk 0:02:56.5]} 6... g6 {[%clk
0:02:48.1]} 7. Nc3 {[%clk 0:02:55.9]} 7... Nxc3 {[%clk 0:02:48]} 8. bxc3 {[%clk
0:02:53]} 8... Bg7 {[%clk 0:02:48.9]} 9. Bd3 {[%clk 0:02:48.5]} 9... O-O {[%clk
0:02:46.7]} 10. O-O {[%clk 0:02:42.3]} 10... d6 {[%clk 0:02:46.1]} 11. exd6
{[%clk 0:02:33.9]} 11... Qxd6 {[%clk 0:02:45.6]} 12. Be3 {[%clk 0:02:28]} 12...
Bg4 {[%clk 0:02:37.6]} 13. h3 {[%clk 0:02:26.3]} 13... Bxf3 {[%clk 0:02:36.3]}
14. Qxf3 {[%clk 0:02:25.6]} 14... e5 {[%clk 0:02:36.2]} 15. d5 {[%clk
0:02:23.6]} 15... Ne7 {[%clk 0:02:35.9]} 16. c4 {[%clk 0:02:10.7]} 16... b6
{[%clk 0:02:34.3]} 17. Rac1 {[%clk 0:01:57.6]} 17... Rac8 {[%clk 0:02:33.2]} 18.
Rfd1 {[%clk 0:01:56.5]} 18... f5 {[%clk 0:02:31.1]} 19. Bb1 {[%clk 0:01:54.6]}
19... e4 {[%clk 0:02:27]} 20. Qe2 {[%clk 0:01:47.6]} 20... f4 {[%clk 0:02:24.1]}
21. Bd4 {[%clk 0:01:39.1]} 21... Bxd4 {[%clk 0:02:01.5]} 22. Rxd4 {[%clk
0:01:34.4]} 22... e3 {[%clk 0:02:01.1]} 23. f3 {[%clk 0:01:22.7]} 23... b5
{[%clk 0:01:48.2]} 24. Be4 {[%clk 0:01:16.9]} 24... Qc5 {[%clk 0:01:32.2]} 25.
Qd3 {[%clk 0:01:12.2]} 25... e2 {[%clk 0:01:24.7]} 26. Kf2 {[%clk 0:01:05.2]}
26... bxc4 {[%clk 0:01:23.4]} 27. Rxc4 {[%clk 0:01:03.9]} 27... Qb6 {[%clk
0:01:22.9]} 28. Kxe2 {[%clk 0:00:59.6]} 28... Rxc4 {[%clk 0:01:15.3]} 29. Rxc4
{[%clk 0:00:55.1]} 29... Qg1 {[%clk 0:01:14.6]} 30. d6 {[%clk 0:00:43]} 30...
Qxg2+ {[%clk 0:01:13.3]} 31. Kd1 {[%clk 0:00:37.6]} 31... Qg1+ {[%clk
0:00:57.4]} 32. Kc2 {[%clk 0:00:36.4]} 32... Qf2+ {[%clk 0:00:55.8]} 33. Kc3
{[%clk 0:00:35.9]} 33... Rb8 {[%clk 0:00:44.6]} 34. Bd5+ {[%clk 0:00:30.8]}
34... Nxd5+ {[%clk 0:00:35.3]} 35. Qxd5+ {[%clk 0:00:30.1]} 35... Kg7 {[%clk
0:00:35.1]} 36. Qe5+ {[%clk 0:00:27.7]} 36... Kh6 {[%clk 0:00:33.5]} 37. Qxf4+
{[%clk 0:00:27.3]} 37... g5 {[%clk 0:00:31.7]} 38. Qf6+ {[%clk 0:00:26.3]} 38...
Kh5 {[%clk 0:00:31.3]} 39. Qf7+ {[%clk 0:00:26.5]} 39... Kh6 {[%clk 0:00:31]}
40. Qe6+ {[%clk 0:00:25.2]} 40... Kh5 {[%clk 0:00:26.9]} 41. Qg4+ {[%clk
0:00:24.8]} 41... Kg6 {[%clk 0:00:26.7]} 42. Qe4+ {[%clk 0:00:24.4]} 42... Kh6
{[%clk 0:00:23.1]} 43. Kd3 {[%clk 0:00:20.7]} 43... Qf1+ {[%clk 0:00:21.4]} 44.
Kd4 {[%clk 0:00:20.5]} 44... Qf2+ {[%clk 0:00:19.7]} 45. Ke5 {[%clk 0:00:20.6]}
45... Re8+ {[%clk 0:00:18.6]} 46. Kd5 {[%clk 0:00:20.5]} 46... Rxe4 {[%clk
0:00:19.4]} 47. fxe4 {[%clk 0:00:20]} 47... Qd2+ {[%clk 0:00:17.6]} 48. Rd4
{[%clk 0:00:19.9]} 48... Qa5+ {[%clk 0:00:18.1]} 49. Ke6 {[%clk 0:00:20.2]}
49... Qd8 {[%clk 0:00:17.4]} 50. d7 {[%clk 0:00:19.7]} 50... Kg6 {[%clk
0:00:16.2]} 51. Rd6 {[%clk 0:00:16.7]} 51... a5 {[%clk 0:00:11.6]} 52. e5 {[%clk
0:00:16.9]} 52... h5 {[%clk 0:00:10.5]} 53. Rc6 {[%clk 0:00:17]} 53... Qg8+
{[%clk 0:00:09]} 54. Kd6 {[%clk 0:00:16.7]} 54... Qf8+ {[%clk 0:00:07.8]} 55.
Kc7+ {[%clk 0:00:16.7]} 55... Kg7 {[%clk 0:00:04.5]} 56. d8=Q {[%clk 0:00:16.6]}
1-0

[Event "Early-Titled-Tuesday-Blitz-February-06-2024"]
[Site "Chess.com"]
[Date "2024.02.06"]
[Round "6"]
[White "klimkoj"]
[Black "FontVella8"]
[Result "0-1"]
[WhiteElo "2913"]
[BlackElo "2765"]
[TimeControl "180+1"]
[EndTime "9:08:26 PST"]
[Termination "FontVella8 won on time"]

1. c4 {[%clk 0:03:00.9]} 1... e6 {[%clk 0:02:58.1]} 2. Nf3 {[%clk 0:02:59.5]}
2... d5 {[%clk 0:02:58.2]} 3. e3 {[%clk 0:02:59.4]} 3... Nf6 {[%clk 0:02:58.4]}
4. Nc3 {[%clk 0:02:59.9]} 4... Bd6 {[%clk 0:02:58.2]} 5. b3 {[%clk 0:03:00]}
5... O-O {[%clk 0:02:58.3]} 6. Bb2 {[%clk 0:03:00.9]} 6... c6 {[%clk 0:02:58.2]}
7. Qc2 {[%clk 0:03:00.9]} 7... e5 {[%clk 0:02:58.4]} 8. d4 {[%clk 0:03:00.1]}
8... e4 {[%clk 0:02:28.9]} 9. Nd2 {[%clk 0:02:58.9]} 9... Re8 {[%clk 0:02:28.4]}
10. cxd5 {[%clk 0:02:52.8]} 10... cxd5 {[%clk 0:02:24.4]} 11. Nb5 {[%clk
0:02:53.2]} 11... Nc6 {[%clk 0:02:24.6]} 12. Nxd6 {[%clk 0:02:50.5]} 12... Qxd6
{[%clk 0:02:25.5]} 13. h3 {[%clk 0:02:33.7]} 13... Bf5 {[%clk 0:02:23.3]} 14. a3
{[%clk 0:02:29.4]} 14... Rac8 {[%clk 0:02:22.8]} 15. Qd1 {[%clk 0:02:21.1]}
15... Rc7 {[%clk 0:02:05.6]} 16. Be2 {[%clk 0:02:20.6]} 16... Rec8 {[%clk
0:02:05.5]} 17. Rc1 {[%clk 0:02:17.5]} 17... Ne7 {[%clk 0:01:57.4]} 18. Rxc7
{[%clk 0:02:11.4]} 18... Qxc7 {[%clk 0:01:51.7]} 19. O-O {[%clk 0:01:56.7]}
19... Qc2 {[%clk 0:01:51.6]} 20. Ba1 {[%clk 0:01:49.5]} 20... Kf8 {[%clk
0:01:51.2]} 21. b4 {[%clk 0:01:40.1]} 21... Bd7 {[%clk 0:01:36.5]} 22. b5 {[%clk
0:01:25.4]} 22... Nf5 {[%clk 0:01:26.7]} 23. a4 {[%clk 0:01:14.2]} 23... Nd6
{[%clk 0:01:23.7]} 24. Re1 {[%clk 0:00:53.4]} 24... Qa2 {[%clk 0:01:15.1]} 25.
Bf1 {[%clk 0:00:30.7]} 25... Rc2 {[%clk 0:01:09.6]} 26. Re2 {[%clk 0:00:31.2]}
26... Qxa4 {[%clk 0:01:02.8]} 27. Nxe4 {[%clk 0:00:25.6]} 27... Ra2 {[%clk
0:00:31.4]} 28. Qxa4 {[%clk 0:00:25.3]} 28... Rxa4 {[%clk 0:00:31.8]} 29. Nxd6
{[%clk 0:00:19.4]} 29... Rxa1 {[%clk 0:00:31]} 30. Rb2 {[%clk 0:00:18.7]} 30...
b6 {[%clk 0:00:27.8]} 31. g4 {[%clk 0:00:14.3]} 31... Ke7 {[%clk 0:00:26]} 32.
Nf5+ {[%clk 0:00:13.7]} 32... Bxf5 {[%clk 0:00:23.9]} 33. gxf5 {[%clk 0:00:13]}
33... Ne4 {[%clk 0:00:21.7]} 34. Kg2 {[%clk 0:00:13.2]} 34... Nd6 {[%clk
0:00:20.7]} 35. Rc2 {[%clk 0:00:12.7]} 35... Nxf5 {[%clk 0:00:20.8]} 36. Rc7+
{[%clk 0:00:12.5]} 36... Ke6 {[%clk 0:00:17]} 37. Bd3 {[%clk 0:00:12.7]} 37...
Nd6 {[%clk 0:00:16.1]} 38. Kf3 {[%clk 0:00:08.2]} 38... g6 {[%clk 0:00:13.1]}
39. Rc6 {[%clk 0:00:05.2]} 39... Ra3 {[%clk 0:00:10.3]} 40. Be2 {[%clk
0:00:04.9]} 40... Kd7 {[%clk 0:00:09.7]} 41. Rc2 {[%clk 0:00:04.8]} 41... Ra5
{[%clk 0:00:07.9]} 42. Rb2 {[%clk 0:00:05]} 42... Nc4 {[%clk 0:00:07.5]} 43. Rb4
{[%clk 0:00:04.6]} 43... Nd2+ {[%clk 0:00:05.7]} 44. Kf4 {[%clk 0:00:05.2]}
44... Ne4 {[%clk 0:00:06.2]} 45. f3 {[%clk 0:00:05.2]} 45... Nd6 {[%clk
0:00:05.9]} 46. Ke5 {[%clk 0:00:05.1]} 46... Ra2 {[%clk 0:00:02.5]} 47. Bd3
{[%clk 0:00:02.5]} 47... Ra3 {[%clk 0:00:03.1]} 48. Bc2 {[%clk 0:00:02.2]} 48...
Rxe3+ {[%clk 0:00:03.5]} 49. Kxd5 {[%clk 0:00:02.7]} 49... Rxf3 {[%clk
0:00:04.1]} 50. Ra4 {[%clk 0:00:03.2]} 50... Nxb5 {[%clk 0:00:03.2]} 51. Ra1
{[%clk 0:00:00.9]} 51... Nc7+ {[%clk 0:00:03.1]} 52. Kc4 {[%clk 0:00:01.1]}
52... Rxh3 {[%clk 0:00:03.5]} 0-1